[Event "*** SCC Grand Prix: Titled Tuesday Blitz"]
[Site "Chess.com"]
[Date "2020.09.08"]
[Round "6"]
[White "Thereisnof0rk"]
[Black "Mr_Sinigami"]
[Result "0-1"]
[WhiteElo "2269"]
[BlackElo "2553"]
[TimeControl "180+1"]
[EndTime "11:06:34 PDT"]
[Termination "Mr_Sinigami won on time"]

1. d4 {[%clk 0:03:00.9]} 1... Nf6 {[%clk 0:02:59.4]} 2. c4 {[%clk 0:03:01.1]}
2... g6 {[%clk 0:02:59.3]} 3. Nc3 {[%clk 0:03:00.8]} 3... Bg7 {[%clk 0:02:59.9]}
4. e4 {[%clk 0:03:00.7]} 4... d6 {[%clk 0:03:00.2]} 5. Nf3 {[%clk 0:03:00.9]}
5... O-O {[%clk 0:03:00.6]} 6. h3 {[%clk 0:03:01.4]} 6... e5 {[%clk 0:02:58.9]}
7. d5 {[%clk 0:03:01.9]} 7... a5 {[%clk 0:02:56.2]} 8. Bg5 {[%clk 0:03:01.5]}
8... Na6 {[%clk 0:02:55.1]} 9. Nd2 {[%clk 0:02:57.3]} 9... Qe8 {[%clk
0:02:46.5]} 10. Be2 {[%clk 0:02:54.4]} 10... h6 {[%clk 0:02:44.7]} 11. Be3
{[%clk 0:02:52.6]} 11... Bd7 {[%clk 0:02:43.1]} 12. O-O {[%clk 0:02:41.2]} 12...
Nh7 {[%clk 0:02:42.6]} 13. Re1 {[%clk 0:02:10.3]} 13... f5 {[%clk 0:02:08.3]}
14. exf5 {[%clk 0:02:10.5]} 14... gxf5 {[%clk 0:02:08.2]} 15. f4 {[%clk
0:01:51.5]} 15... exf4 {[%clk 0:02:07.7]} 16. Bh5 {[%clk 0:01:36.3]} 16... Qd8
{[%clk 0:01:55.8]} 17. Bxf4 {[%clk 0:01:32.1]} 17... Nc5 {[%clk 0:01:55.2]} 18.
Nf3 {[%clk 0:01:18.1]} 18... Nf6 {[%clk 0:01:47.5]} 19. Bg6 {[%clk 0:01:18.1]}
19... Nfe4 {[%clk 0:01:40.5]} 20. h4 {[%clk 0:00:40.3]} 20... Nxc3 {[%clk
0:01:29.2]} 21. bxc3 {[%clk 0:00:39.8]} 21... Qf6 {[%clk 0:01:29.7]} 22. h5
{[%clk 0:00:39.5]} 22... Qxc3 {[%clk 0:01:24.3]} 23. Rc1 {[%clk 0:00:31.4]}
23... Qd3 {[%clk 0:01:22.7]} 24. Nd2 {[%clk 0:00:15.4]} 24... Qd4+ {[%clk
0:01:18.9]} 25. Be3 {[%clk 0:00:15.4]} 25... Qg4 {[%clk 0:01:10.6]} 26. Nf3
{[%clk 0:00:07.5]} 26... Be8 {[%clk 0:01:02.7]} 27. Bxe8 {[%clk 0:00:01.2]}
27... Raxe8 {[%clk 0:01:01.9]} 0-1

[Event "*** SCC Grand Prix: Titled Tuesday Blitz"]
[Site "Chess.com"]
[Date "2020.09.08"]
[Round "6"]
[White "FlamingPhoenix123"]
[Black "bascheyaro"]
[Result "1/2-1/2"]
[WhiteElo "2572"]
[BlackElo "2738"]
[TimeControl "180+1"]
[EndTime "11:06:36 PDT"]
[Termination "Game drawn by repetition"]

1. e4 {[%clk 0:03:00.9]} 1... e6 {[%clk 0:02:59.9]} 2. d4 {[%clk 0:02:55.2]}
2... d5 {[%clk 0:03:00.8]} 3. Nd2 {[%clk 0:02:55.1]} 3... c5 {[%clk 0:03:00.9]}
4. Ngf3 {[%clk 0:02:54.7]} 4... Nc6 {[%clk 0:03:01.1]} 5. exd5 {[%clk
0:02:39.8]} 5... exd5 {[%clk 0:03:02]} 6. Bb5 {[%clk 0:02:40]} 6... c4 {[%clk
0:03:02.2]} 7. O-O {[%clk 0:02:35.1]} 7... Bd6 {[%clk 0:03:02.3]} 8. b3 {[%clk
0:02:28.1]} 8... cxb3 {[%clk 0:03:03.2]} 9. axb3 {[%clk 0:02:28.2]} 9... Ne7
{[%clk 0:03:03.3]} 10. c4 {[%clk 0:02:20.3]} 10... O-O {[%clk 0:03:03.1]} 11. c5
{[%clk 0:02:20.4]} 11... Bc7 {[%clk 0:03:03]} 12. Bb2 {[%clk 0:02:13.3]} 12...
Bf5 {[%clk 0:03:02.4]} 13. Re1 {[%clk 0:02:12.1]} 13... a6 {[%clk 0:03:02.4]}
14. Bf1 {[%clk 0:02:06.9]} 14... Nb4 {[%clk 0:03:02.4]} 15. Rc1 {[%clk 0:02:02]}
15... Nec6 {[%clk 0:03:00.5]} 16. g3 {[%clk 0:01:57.7]} 16... Bg4 {[%clk
0:02:50.7]} 17. h3 {[%clk 0:01:56]} 17... Bh5 {[%clk 0:02:50.8]} 18. Bc3 {[%clk
0:01:48.5]} 18... Qf6 {[%clk 0:02:32.5]} 19. Ra1 {[%clk 0:01:34.2]} 19... Rae8
{[%clk 0:02:17.4]} 20. Rxe8 {[%clk 0:01:31.4]} 20... Rxe8 {[%clk 0:02:16.4]} 21.
Ra4 {[%clk 0:01:31.3]} 21... a5 {[%clk 0:02:13.4]} 22. Bb5 {[%clk 0:01:28.7]}
22... Re6 {[%clk 0:02:10.8]} 23. Kg2 {[%clk 0:01:19.7]} 23... h6 {[%clk
0:02:08.7]} 24. Ra1 {[%clk 0:01:13.6]} 24... Bg6 {[%clk 0:01:55.5]} 25. Qf1
{[%clk 0:01:10]} 25... Nc2 {[%clk 0:01:48.7]} 26. Rc1 {[%clk 0:01:09.7]} 26...
N2xd4 {[%clk 0:01:43.8]} 27. Bxc6 {[%clk 0:01:08.2]} 27... Nxf3 {[%clk
0:01:41.3]} 28. Bxf6 {[%clk 0:01:07.1]} 28... Nxd2 {[%clk 0:01:41.4]} 29. Bxd5
{[%clk 0:00:17.3]} 29... Nxf1 {[%clk 0:01:23.9]} 30. Bxe6 {[%clk 0:00:16.9]}
30... fxe6 {[%clk 0:01:19.3]} 31. Bc3 {[%clk 0:00:16.8]} 31... Bd3 {[%clk
0:01:19.3]} 32. Rxf1 {[%clk 0:00:17.1]} 32... Bxf1+ {[%clk 0:01:19.2]} 33. Kxf1
{[%clk 0:00:18]} 33... e5 {[%clk 0:01:18.9]} 34. Ke2 {[%clk 0:00:18.5]} 34...
Kf7 {[%clk 0:01:19.4]} 35. Kd3 {[%clk 0:00:18.9]} 35... Ke6 {[%clk 0:01:19.7]}
36. Ke4 {[%clk 0:00:19]} 36... h5 {[%clk 0:01:17.9]} 37. h4 {[%clk 0:00:18.8]}
37... g6 {[%clk 0:01:17.9]} 38. Bb2 {[%clk 0:00:18.6]} 38... Bb8 {[%clk
0:01:17.1]} 39. Bc3 {[%clk 0:00:18.7]} 39... Bc7 {[%clk 0:01:17.5]} 40. Bb2
{[%clk 0:00:18.8]} 40... Bb8 {[%clk 0:01:17.6]} 41. Bc3 {[%clk 0:00:19.1]} 41...
Bc7 {[%clk 0:01:16.7]} 1/2-1/2

[Event "*** SCC Grand Prix: Titled Tuesday Blitz"]
[Site "Chess.com"]
[Date "2020.09.08"]
[Round "6"]
[White "skoularikii"]
[Black "MVM2008"]
[Result "1-0"]
[WhiteElo "2491"]
[BlackElo "2270"]
[TimeControl "180+1"]
[EndTime "11:06:41 PDT"]
[Termination "skoularikii won by checkmate"]

1. e4 {[%clk 0:03:00.9]} 1... c5 {[%clk 0:02:59.3]} 2. Nf3 {[%clk 0:03:00.5]}
2... Nc6 {[%clk 0:02:59.2]} 3. Bb5 {[%clk 0:02:59.9]} 3... g6 {[%clk 0:02:58.1]}
4. O-O {[%clk 0:02:59.2]} 4... Bg7 {[%clk 0:02:58]} 5. c3 {[%clk 0:02:59]} 5...
e5 {[%clk 0:02:56.2]} 6. h3 {[%clk 0:02:57.3]} 6... Nge7 {[%clk 0:02:54.9]} 7.
d3 {[%clk 0:02:56.2]} 7... O-O {[%clk 0:02:53.9]} 8. Re1 {[%clk 0:02:56.3]} 8...
d6 {[%clk 0:02:52.6]} 9. Bg5 {[%clk 0:02:56]} 9... h6 {[%clk 0:02:50.2]} 10. Bh4
{[%clk 0:02:56]} 10... g5 {[%clk 0:02:49.2]} 11. Bg3 {[%clk 0:02:56.1]} 11...
Ng6 {[%clk 0:02:47.9]} 12. Nbd2 {[%clk 0:02:51.1]} 12... Nf4 {[%clk 0:02:29.5]}
13. Nc4 {[%clk 0:02:47.5]} 13... a6 {[%clk 0:02:17.8]} 14. Bxc6 {[%clk
0:02:46.1]} 14... bxc6 {[%clk 0:02:18.7]} 15. Ne3 {[%clk 0:02:45.1]} 15... d5
{[%clk 0:02:07.7]} 16. Nh2 {[%clk 0:02:37.5]} 16... dxe4 {[%clk 0:01:29.7]} 17.
dxe4 {[%clk 0:02:36.5]} 17... Be6 {[%clk 0:01:29]} 18. Qa4 {[%clk 0:02:16.7]}
18... Qc8 {[%clk 0:00:58.1]} 19. Rad1 {[%clk 0:01:55.2]} 19... Qb7 {[%clk
0:00:45.2]} 20. b3 {[%clk 0:01:53.2]} 20... Qb5 {[%clk 0:00:37.6]} 21. Qa3
{[%clk 0:01:41]} 21... Rad8 {[%clk 0:00:20.6]} 22. c4 {[%clk 0:01:32]} 22... Qb4
{[%clk 0:00:19.9]} 23. Qb2 {[%clk 0:01:31.9]} 23... Nd3 {[%clk 0:00:17.4]} 24.
Rxd3 {[%clk 0:01:26.4]} 24... Qxe1+ {[%clk 0:00:16]} 25. Nhf1 {[%clk 0:01:21.2]}
25... Rxd3 {[%clk 0:00:15.6]} 26. Bxe5 {[%clk 0:01:22.1]} 26... Bxe5 {[%clk
0:00:12.3]} 27. Qxe5 {[%clk 0:01:23]} 27... Qc3 {[%clk 0:00:10.2]} 28. Qxc5
{[%clk 0:01:23.1]} 28... Qd4 {[%clk 0:00:08.8]} 29. Qxc6 {[%clk 0:01:23.3]}
29... Rd8 {[%clk 0:00:06.6]} 30. Qb7 {[%clk 0:01:23.5]} 30... Qd7 {[%clk
0:00:05.6]} 31. Qxa6 {[%clk 0:01:23.6]} 31... Rd6 {[%clk 0:00:03.8]} 32. Qa5
{[%clk 0:01:23.3]} 32... Qc8 {[%clk 0:00:03.3]} 33. Qe5 {[%clk 0:01:23.5]} 33...
Qd7 {[%clk 0:00:02.6]} 34. Qf6 {[%clk 0:01:23.8]} 34... Bxc4 {[%clk 0:00:01.7]}
35. Qe5 {[%clk 0:01:21.8]} 35... Be6 {[%clk 0:00:02]} 36. Ng3 {[%clk 0:01:22]}
36... Qe8 {[%clk 0:00:02.6]} 37. Ngf5 {[%clk 0:01:21.5]} 37... R6d7 {[%clk
0:00:03]} 38. Qg7# {[%clk 0:01:21]} 1-0

[Event "*** SCC Grand Prix: Titled Tuesday Blitz"]
[Site "Chess.com"]
[Date "2020.09.08"]
[Round "6"]
[White "Gabix_94"]
[Black "Ermito2020"]
[Result "1-0"]
[WhiteElo "2838"]
[BlackElo "2631"]
[TimeControl "180+1"]
[EndTime "11:06:46 PDT"]
[Termination "Gabix_94 won on time"]

1. Nf3 {[%clk 0:03:00.9]} 1... d5 {[%clk 0:02:58.9]} 2. g3 {[%clk 0:02:59.6]}
2... Nc6 {[%clk 0:02:55]} 3. d4 {[%clk 0:02:57.3]} 3... Bf5 {[%clk 0:02:54.5]}
4. Bg2 {[%clk 0:02:56.2]} 4... e6 {[%clk 0:02:54.8]} 5. O-O {[%clk 0:02:55.2]}
5... Nb4 {[%clk 0:02:55.4]} 6. Na3 {[%clk 0:02:55]} 6... Be7 {[%clk 0:02:56]} 7.
c3 {[%clk 0:02:53.2]} 7... Nc6 {[%clk 0:02:56.6]} 8. Qb3 {[%clk 0:02:52.6]} 8...
Rb8 {[%clk 0:02:57.2]} 9. Bf4 {[%clk 0:02:48.7]} 9... g5 {[%clk 0:02:56.4]} 10.
Bd2 {[%clk 0:02:43.1]} 10... h5 {[%clk 0:02:52.8]} 11. c4 {[%clk 0:02:39.2]}
11... g4 {[%clk 0:02:49.3]} 12. Ne5 {[%clk 0:02:24.6]} 12... Nxd4 {[%clk
0:02:30.7]} 13. Qa4+ {[%clk 0:02:23.8]} 13... c6 {[%clk 0:02:29.3]} 14. cxd5
{[%clk 0:02:23.2]} 14... Nxe2+ {[%clk 0:02:29]} 15. Kh1 {[%clk 0:02:21.9]} 15...
h4 {[%clk 0:02:24.8]} 16. dxc6 {[%clk 0:02:10.3]} 16... b5 {[%clk 0:02:05.6]}
17. Qd1 {[%clk 0:01:49.6]} 17... h3 {[%clk 0:00:41]} 18. Qxe2 {[%clk 0:01:45.5]}
18... hxg2+ {[%clk 0:00:40.7]} 19. Kxg2 {[%clk 0:01:46.3]} 19... Qd5+ {[%clk
0:00:40.7]} 20. Kg1 {[%clk 0:01:39.6]} 20... f6 {[%clk 0:00:38.9]} 21. c7 {[%clk
0:01:34.5]} 21... Rc8 {[%clk 0:00:37]} 22. Nxg4 {[%clk 0:01:33.6]} 22... Bd3
{[%clk 0:00:12.2]} 23. Qe3 {[%clk 0:01:16.7]} 23... Bc5 {[%clk 0:00:06.9]} 24.
Qf4 {[%clk 0:01:13.2]} 24... Ke7 {[%clk 0:00:06.5]} 25. Rfe1 {[%clk 0:01:08.4]}
25... Bd6 {[%clk 0:00:06.6]} 26. Bb4 {[%clk 0:01:08.3]} 26... e5 {[%clk
0:00:04.6]} 27. Nxf6 {[%clk 0:01:02.8]} 27... Nxf6 {[%clk 0:00:03.4]} 28. Rxe5+
{[%clk 0:01:03.2]} 28... Kf7 {[%clk 0:00:01.9]} 29. Rxd5 {[%clk 0:01:01.8]}
29... Bxf4 {[%clk 0:00:02.8]} 30. Rxd3 {[%clk 0:01:02.3]} 30... Be5 {[%clk
0:00:02]} 31. Nxb5 {[%clk 0:01:02.1]} 31... Bxb2 {[%clk 0:00:01.5]} 32. Rad1
{[%clk 0:01:00.9]} 32... Be5 {[%clk 0:00:01.9]} 33. Bd6 {[%clk 0:00:59]} 1-0

[Event "*** SCC Grand Prix: Titled Tuesday Blitz"]
[Site "Chess.com"]
[Date "2020.09.08"]
[Round "6"]
[White "romulocardoso"]
[Black "nitpicker"]
[Result "1-0"]
[WhiteElo "2042"]
[BlackElo "2214"]
[TimeControl "180+1"]
[EndTime "11:06:46 PDT"]
[Termination "romulocardoso won by resignation"]

1. e4 {[%clk 0:03:00.9]} 1... c5 {[%clk 0:02:58.3]} 2. Nf3 {[%clk 0:03:00.1]}
2... Nc6 {[%clk 0:02:58.3]} 3. d4 {[%clk 0:03:00.2]} 3... cxd4 {[%clk
0:02:58.5]} 4. Nxd4 {[%clk 0:03:01.1]} 4... Nf6 {[%clk 0:02:58.6]} 5. Nc3 {[%clk
0:03:00.8]} 5... d6 {[%clk 0:02:58.8]} 6. Be3 {[%clk 0:03:01.1]} 6... e5 {[%clk
0:02:57.5]} 7. Nb3 {[%clk 0:02:58.4]} 7... h6 {[%clk 0:02:55.7]} 8. Qd2 {[%clk
0:02:57.8]} 8... Be7 {[%clk 0:02:55.5]} 9. f3 {[%clk 0:02:57.6]} 9... Be6 {[%clk
0:02:50.1]} 10. O-O-O {[%clk 0:02:57.9]} 10... a5 {[%clk 0:02:44.9]} 11. Bb5
{[%clk 0:02:49.4]} 11... O-O {[%clk 0:02:43]} 12. g4 {[%clk 0:02:47.3]} 12...
Nh7 {[%clk 0:02:33.1]} 13. h4 {[%clk 0:02:47]} 13... Bxh4 {[%clk 0:02:32]} 14.
Qxd6 {[%clk 0:02:38.6]} 14... Bg5 {[%clk 0:02:25.9]} 15. Qxd8 {[%clk 0:02:29]}
15... Bxe3+ {[%clk 0:02:25.3]} 16. Qd2 {[%clk 0:02:29.3]} 16... Bxd2+ {[%clk
0:02:24.5]} 17. Rxd2 {[%clk 0:02:29.7]} 17... Ng5 {[%clk 0:02:14.8]} 18. Rf1
{[%clk 0:02:18]} 18... Rfd8 {[%clk 0:02:05.3]} 19. Bxc6 {[%clk 0:02:12.7]} 19...
bxc6 {[%clk 0:02:04.1]} 20. Nc5 {[%clk 0:02:13]} 20... Bc4 {[%clk 0:02:01.1]}
21. Rff2 {[%clk 0:02:11.1]} 21... Nh3 {[%clk 0:01:54.4]} 22. Rxd8+ {[%clk
0:02:05.5]} 22... Rxd8 {[%clk 0:01:52.2]} 23. Rd2 {[%clk 0:02:06.4]} 23... Rxd2
{[%clk 0:01:42]} 24. Kxd2 {[%clk 0:02:07.3]} 24... g6 {[%clk 0:01:32.1]} 25. Nb7
{[%clk 0:02:06.7]} 25... h5 {[%clk 0:01:31.6]} 26. Nxa5 {[%clk 0:02:02.1]} 26...
Bf1 {[%clk 0:01:26.8]} 27. Nxc6 {[%clk 0:01:59.8]} 27... f6 {[%clk 0:01:27]} 28.
Nd5 {[%clk 0:01:57.9]} 28... Kf7 {[%clk 0:01:20.2]} 29. Nd8+ {[%clk 0:01:56.9]}
29... Kg7 {[%clk 0:01:20.6]} 30. Ne6+ {[%clk 0:01:55.7]} 30... Kf7 {[%clk
0:01:20]} 31. Nd8+ {[%clk 0:01:54.5]} 31... Kg7 {[%clk 0:01:19.9]} 32. gxh5
{[%clk 0:01:42.1]} 32... gxh5 {[%clk 0:01:19.5]} 33. Ne7 {[%clk 0:01:43]} 33...
Nf4 {[%clk 0:01:11.1]} 34. Nf5+ {[%clk 0:01:42.5]} 34... Kf8 {[%clk 0:01:08.5]}
35. Nc6 {[%clk 0:01:33.4]} 35... Ng6 {[%clk 0:01:07]} 36. a4 {[%clk 0:01:32.1]}
36... h4 {[%clk 0:01:07]} 37. b4 {[%clk 0:01:29.4]} 37... h3 {[%clk 0:01:06.7]}
38. b5 {[%clk 0:01:28.1]} 38... h2 {[%clk 0:01:02.4]} 39. Ng3 {[%clk 0:01:28.1]}
39... Bg2 {[%clk 0:01:02.1]} 40. b6 {[%clk 0:01:25.7]} 40... Bxf3 {[%clk
0:00:57.5]} 41. b7 {[%clk 0:01:25.1]} 41... Bxe4 {[%clk 0:00:56.3]} 42. b8=Q+
{[%clk 0:01:24.2]} 42... Kf7 {[%clk 0:00:56.1]} 43. Qb7+ {[%clk 0:01:20.9]}
43... Kf8 {[%clk 0:00:51.4]} 44. Qc8+ {[%clk 0:01:09.1]} 44... Kf7 {[%clk
0:00:51.2]} 45. Nd8+ {[%clk 0:01:07.4]} 45... Kg7 {[%clk 0:00:50.5]} 46. Qh3
{[%clk 0:00:59.4]} 46... Nf4 {[%clk 0:00:47]} 47. Qxh2 {[%clk 0:00:56.7]} 47...
Kf8 {[%clk 0:00:47]} 48. Qh8+ {[%clk 0:00:55.1]} 48... Ke7 {[%clk 0:00:47.2]}
49. Nxe4 {[%clk 0:00:55.3]} 49... Kd7 {[%clk 0:00:45.3]} 50. Qxf6 {[%clk
0:00:54.7]} 1-0

[Event "*** SCC Grand Prix: Titled Tuesday Blitz"]
[Site "Chess.com"]
[Date "2020.09.08"]
[Round "6"]
[White "elohunter1999"]
[Black "ENajer77"]
[Result "1-0"]
[WhiteElo "2464"]
[BlackElo "2594"]
[TimeControl "180+1"]
[EndTime "11:06:48 PDT"]
[Termination "elohunter1999 won by resignation"]

1. e4 {[%clk 0:03:00.9]} 1... c5 {[%clk 0:02:58.6]} 2. Nf3 {[%clk 0:03:00.6]}
2... e6 {[%clk 0:02:59]} 3. d4 {[%clk 0:03:00.6]} 3... cxd4 {[%clk 0:02:59.6]}
4. Nxd4 {[%clk 0:03:01.5]} 4... a6 {[%clk 0:03:00.1]} 5. Bd3 {[%clk 0:03:01.2]}
5... Bc5 {[%clk 0:02:59.2]} 6. Nb3 {[%clk 0:03:01.1]} 6... Be7 {[%clk
0:02:59.7]} 7. Qg4 {[%clk 0:03:01]} 7... g6 {[%clk 0:02:59.9]} 8. Qe2 {[%clk
0:03:01]} 8... d6 {[%clk 0:03:00.3]} 9. O-O {[%clk 0:02:59.9]} 9... Nd7 {[%clk
0:03:00.8]} 10. Nc3 {[%clk 0:02:59.7]} 10... Qc7 {[%clk 0:03:01.1]} 11. Bd2
{[%clk 0:02:57.5]} 11... b5 {[%clk 0:03:01]} 12. a4 {[%clk 0:02:32.6]} 12... b4
{[%clk 0:03:01.2]} 13. Na2 {[%clk 0:02:31.8]} 13... a5 {[%clk 0:02:56.2]} 14. c3
{[%clk 0:02:28.8]} 14... Nc5 {[%clk 0:02:49.5]} 15. Bb5+ {[%clk 0:02:13.6]}
15... Bd7 {[%clk 0:02:42.6]} 16. Nxc5 {[%clk 0:01:59.5]} 16... dxc5 {[%clk
0:02:42.7]} 17. Rad1 {[%clk 0:01:50.6]} 17... Nf6 {[%clk 0:02:37.5]} 18. Bh6
{[%clk 0:01:33.5]} 18... Rd8 {[%clk 0:02:21.9]} 19. Bg7 {[%clk 0:01:25.4]} 19...
Rg8 {[%clk 0:02:00.8]} 20. Bxf6 {[%clk 0:01:24.5]} 20... Bxf6 {[%clk 0:02:01]}
21. Rxd7 {[%clk 0:01:24.2]} 21... Rxd7 {[%clk 0:02:01.1]} 22. Rd1 {[%clk
0:01:22.6]} 22... Kf8 {[%clk 0:02:01.4]} 23. Rxd7 {[%clk 0:01:16.8]} 23... Qe5
{[%clk 0:02:00.8]} 24. g3 {[%clk 0:01:11.7]} 24... Kg7 {[%clk 0:02:00.2]} 25. f4
{[%clk 0:01:08.2]} 25... Qb8 {[%clk 0:02:00]} 26. e5 {[%clk 0:01:05.2]} 26...
Bd8 {[%clk 0:02:00.1]} 27. Qc4 {[%clk 0:01:02.4]} 27... Re8 {[%clk 0:01:50.7]}
28. Nc1 {[%clk 0:00:58.8]} 28... Re7 {[%clk 0:01:49.3]} 29. Rxe7 {[%clk
0:00:57.2]} 29... Bxe7 {[%clk 0:01:50.2]} 30. Nd3 {[%clk 0:00:57.3]} 30... Qb7
{[%clk 0:01:49]} 31. Nf2 {[%clk 0:00:39.5]} 31... h5 {[%clk 0:01:47.8]} 32. Qe4
{[%clk 0:00:38.9]} 32... Qa7 {[%clk 0:01:46.6]} 33. c4 {[%clk 0:00:38]} 33... b3
{[%clk 0:01:45.5]} 34. Qc6 {[%clk 0:00:37.4]} 34... h4 {[%clk 0:01:40.8]} 35.
Qd7 {[%clk 0:00:37.1]} 35... Qa8 {[%clk 0:01:39.3]} 36. Qxe7 {[%clk 0:00:34]}
36... hxg3 {[%clk 0:01:39.3]} 37. hxg3 {[%clk 0:00:33.4]} 37... Qf3 {[%clk
0:01:39.9]} 38. Qg5 {[%clk 0:00:28.8]} 38... Qe3 {[%clk 0:01:39.2]} 39. Kg2
{[%clk 0:00:23.5]} 39... Qd4 {[%clk 0:01:35.3]} 40. Ng4 {[%clk 0:00:18.6]} 40...
Qe4+ {[%clk 0:01:31.8]} 41. Kh3 {[%clk 0:00:13.7]} 41... Qh1+ {[%clk 0:01:31]}
42. Nh2 {[%clk 0:00:14.3]} 42... Qb1 {[%clk 0:01:25.7]} 43. Qe7 {[%clk
0:00:13.4]} 43... Qf5+ {[%clk 0:01:21.2]} 44. Ng4 {[%clk 0:00:13.2]} 44... Qh5+
{[%clk 0:01:21.2]} 45. Qh4 {[%clk 0:00:12.2]} 45... Qf5 {[%clk 0:01:21.4]} 46.
Qf6+ {[%clk 0:00:12.4]} 1-0

[Event "*** SCC Grand Prix: Titled Tuesday Blitz"]
[Site "Chess.com"]
[Date "2020.09.08"]
[Round "6"]
[White "Barmen_EV"]
[Black "DinaBelenkaya"]
[Result "1-0"]
[WhiteElo "2436"]
[BlackElo "2277"]
[TimeControl "180+1"]
[EndTime "11:06:49 PDT"]
[Termination "Barmen_EV won by checkmate"]

1. d4 {[%clk 0:03:00.9]} 1... d5 {[%clk 0:02:57.3]} 2. c4 {[%clk 0:03:01.8]}
2... dxc4 {[%clk 0:02:56.6]} 3. e4 {[%clk 0:02:59.5]} 3... Nf6 {[%clk
0:02:56.3]} 4. e5 {[%clk 0:02:59.2]} 4... Nd5 {[%clk 0:02:56.4]} 5. Bxc4 {[%clk
0:03:00.1]} 5... Nb6 {[%clk 0:02:55.5]} 6. Bd3 {[%clk 0:02:58.3]} 6... Be6
{[%clk 0:02:55.3]} 7. Nc3 {[%clk 0:02:56.4]} 7... Nc6 {[%clk 0:02:52.8]} 8. Nf3
{[%clk 0:02:48.9]} 8... Qd7 {[%clk 0:02:49.4]} 9. Ne4 {[%clk 0:02:42.1]} 9...
Bd5 {[%clk 0:02:48.2]} 10. Nc5 {[%clk 0:02:40.7]} 10... Qc8 {[%clk 0:02:48.3]}
11. O-O {[%clk 0:02:35.8]} 11... e6 {[%clk 0:02:48.5]} 12. Be3 {[%clk
0:02:31.2]} 12... Bxf3 {[%clk 0:02:05.4]} 13. Qxf3 {[%clk 0:02:30]} 13... Bxc5
{[%clk 0:02:05.8]} 14. dxc5 {[%clk 0:02:29.2]} 14... Nxe5 {[%clk 0:02:04.8]} 15.
Qg3 {[%clk 0:02:11.9]} 15... Nxd3 {[%clk 0:01:55.7]} 16. Qxg7 {[%clk 0:02:09]}
16... Rf8 {[%clk 0:01:40.3]} 17. cxb6 {[%clk 0:02:05]} 17... Qd7 {[%clk
0:01:34.8]} 18. bxc7 {[%clk 0:01:57.5]} 18... f5 {[%clk 0:01:26.7]} 19. Qc3
{[%clk 0:01:50.8]} 19... f4 {[%clk 0:01:20.4]} 20. Bxa7 {[%clk 0:01:40]} 20...
Rg8 {[%clk 0:01:16.3]} 21. Rad1 {[%clk 0:01:33.4]} 21... Kf7 {[%clk 0:00:15.5]}
22. Rxd3 {[%clk 0:01:27.1]} 22... Qa4 {[%clk 0:00:15.6]} 23. Bd4 {[%clk
0:01:10]} 23... Rac8 {[%clk 0:00:08.3]} 24. Rh3 {[%clk 0:01:06.5]} 24... Qb5
{[%clk 0:00:04.9]} 25. Rxh7+ {[%clk 0:01:04.4]} 25... Ke8 {[%clk 0:00:05]} 26.
Qh3 {[%clk 0:00:50]} 26... Qc6 {[%clk 0:00:02.6]} 27. Qh5+ {[%clk 0:00:48.5]}
27... Kf8 {[%clk 0:00:02.7]} 28. Qf7# {[%clk 0:00:48.1]} 1-0

[Event "*** SCC Grand Prix: Titled Tuesday Blitz"]
[Site "Chess.com"]
[Date "2020.09.08"]
[Round "6"]
[White "jeetjain"]
[Black "Sethu0025"]
[Result "1/2-1/2"]
[WhiteElo "2434"]
[BlackElo "2707"]
[TimeControl "180+1"]
[EndTime "11:06:50 PDT"]
[Termination "Game drawn by repetition"]

1. e4 {[%clk 0:03:00.9]} 1... c5 {[%clk 0:02:59.7]} 2. Nf3 {[%clk 0:03:00.7]}
2... d6 {[%clk 0:03:00.3]} 3. Bb5+ {[%clk 0:03:00.5]} 3... Nd7 {[%clk
0:02:59.8]} 4. c3 {[%clk 0:03:00.6]} 4... Nf6 {[%clk 0:02:58.7]} 5. Qe2 {[%clk
0:03:00.6]} 5... a6 {[%clk 0:02:58.8]} 6. Ba4 {[%clk 0:03:00.6]} 6... b5 {[%clk
0:02:59]} 7. Bc2 {[%clk 0:03:00.8]} 7... Bb7 {[%clk 0:02:59.3]} 8. O-O {[%clk
0:03:01.1]} 8... Qc7 {[%clk 0:02:56]} 9. d4 {[%clk 0:03:00.1]} 9... e6 {[%clk
0:02:55.1]} 10. a4 {[%clk 0:02:50.6]} 10... Be7 {[%clk 0:02:52.9]} 11. Re1
{[%clk 0:02:22.3]} 11... b4 {[%clk 0:02:18.6]} 12. e5 {[%clk 0:02:08.1]} 12...
dxe5 {[%clk 0:02:16.1]} 13. dxe5 {[%clk 0:02:06.8]} 13... Nd5 {[%clk 0:02:10.2]}
14. c4 {[%clk 0:02:04.2]} 14... N5b6 {[%clk 0:02:09.9]} 15. Bf4 {[%clk
0:01:47.3]} 15... a5 {[%clk 0:02:07.9]} 16. Nbd2 {[%clk 0:01:41.2]} 16... h6
{[%clk 0:02:08.3]} 17. Ne4 {[%clk 0:01:35.9]} 17... O-O-O {[%clk 0:02:04.7]} 18.
h3 {[%clk 0:01:00.1]} 18... Bxe4 {[%clk 0:02:04.5]} 19. Bxe4 {[%clk 0:00:56.9]}
19... Nb8 {[%clk 0:02:02.4]} 20. b3 {[%clk 0:00:54.6]} 20... Rd7 {[%clk
0:01:57.9]} 21. Rad1 {[%clk 0:00:54.5]} 21... Rhd8 {[%clk 0:01:58.5]} 22. Rxd7
{[%clk 0:00:54.6]} 22... Qxd7 {[%clk 0:01:58.7]} 23. Be3 {[%clk 0:00:43.4]}
23... Nc6 {[%clk 0:01:57.2]} 24. Bc2 {[%clk 0:00:37.8]} 24... Qc7 {[%clk
0:01:56.7]} 25. Bf4 {[%clk 0:00:34.8]} 25... Nd4 {[%clk 0:01:52.6]} 26. Nxd4
{[%clk 0:00:34.6]} 26... cxd4 {[%clk 0:01:53.5]} 27. Bd3 {[%clk 0:00:32.4]}
27... Nd7 {[%clk 0:01:53.3]} 28. Qe4 {[%clk 0:00:30.7]} 28... Nc5 {[%clk
0:01:53.5]} 29. Qa8+ {[%clk 0:00:28.1]} 29... Kd7 {[%clk 0:01:53.3]} 30. Qf3
{[%clk 0:00:28.2]} 30... Nxb3 {[%clk 0:01:49.7]} 31. c5 {[%clk 0:00:26.6]} 31...
Nxc5 {[%clk 0:01:00.4]} 32. Bb5+ {[%clk 0:00:26.5]} 32... Kc8 {[%clk 0:01:00.5]}
33. Qa8+ {[%clk 0:00:26.2]} 33... Qb8 {[%clk 0:01:00.9]} 34. Qc6+ {[%clk
0:00:16.3]} 34... Qc7 {[%clk 0:01:01.1]} 35. Qa8+ {[%clk 0:00:16.5]} 35... Qb8
{[%clk 0:01:01.5]} 36. Qc6+ {[%clk 0:00:16.6]} 36... Qc7 {[%clk 0:01:01.9]} 37.
Qa8+ {[%clk 0:00:16.9]} 1/2-1/2